[Event "Late-Titled-Tuesday-Blitz-September-05-2023"]
[Site "Chess.com"]
[Date "2023.09.05"]
[Round "9"]
[White "newyorkmouse"]
[Black "Jarming"]
[Result "0-1"]
[WhiteElo "2470"]
[BlackElo "2657"]
[TimeControl "180+1"]
[EndTime "15:45:28 PDT"]
[Termination "Jarming won on time"]

1. b3 {[%clk 0:02:58.1]} 1... b6 {[%clk 0:02:58.7]} 2. Bb2 {[%clk 0:02:57.8]}
2... Bb7 {[%clk 0:02:59.2]} 3. f4 {[%clk 0:02:58.1]} 3... d6 {[%clk 0:02:59.8]}
4. Nf3 {[%clk 0:02:58.1]} 4... Nd7 {[%clk 0:03:00.7]} 5. e3 {[%clk 0:02:58]}
5... Ngf6 {[%clk 0:03:01.4]} 6. Be2 {[%clk 0:02:55.6]} 6... g6 {[%clk
0:03:01.8]} 7. O-O {[%clk 0:02:55.6]} 7... Bg7 {[%clk 0:03:02.4]} 8. d3 {[%clk
0:02:55.9]} 8... e5 {[%clk 0:03:00.8]} 9. fxe5 {[%clk 0:02:48.5]} 9... Ng4
{[%clk 0:03:01]} 10. Qc1 {[%clk 0:02:19]} 10... Ngxe5 {[%clk 0:02:49.4]} 11.
Nbd2 {[%clk 0:02:16.3]} 11... O-O {[%clk 0:02:48.4]} 12. e4 {[%clk 0:02:04.6]}
12... Bh6 {[%clk 0:02:47.3]} 13. h3 {[%clk 0:01:58.5]} 13... Nxf3+ {[%clk
0:02:40.9]} 14. Bxf3 {[%clk 0:01:54.3]} 14... Ne5 {[%clk 0:02:41.8]} 15. Be2
{[%clk 0:01:52.6]} 15... Qh4 {[%clk 0:02:37.6]} 16. Qd1 {[%clk 0:01:49]} 16...
f5 {[%clk 0:02:32]} 17. Nf3 {[%clk 0:01:37.8]} 17... Nxf3+ {[%clk 0:02:08.1]}
18. Bxf3 {[%clk 0:01:38.7]} 18... fxe4 {[%clk 0:02:07.7]} 19. dxe4 {[%clk
0:01:21.5]} 19... Be3+ {[%clk 0:01:52.9]} 20. Kh1 {[%clk 0:01:21.2]} 20... Qg3
{[%clk 0:01:49.8]} 21. Bg4 {[%clk 0:01:01.2]} 21... h5 {[%clk 0:01:35.6]} 22.
Bxh5 {[%clk 0:00:41.3]} 22... Rxf1+ {[%clk 0:01:03.3]} 23. Qxf1 {[%clk
0:00:40.4]} 23... Bxe4 {[%clk 0:01:03.7]} 24. Bf3 {[%clk 0:00:21.8]} 24... Rf8
{[%clk 0:00:59.7]} 25. Qc4+ {[%clk 0:00:18.2]} 25... d5 {[%clk 0:00:54.3]} 26.
Qc3 {[%clk 0:00:18.1]} 26... d4 {[%clk 0:00:45.4]} 27. Qc4+ {[%clk 0:00:18.3]}
27... Kh7 {[%clk 0:00:44.9]} 28. Bxe4 {[%clk 0:00:18.1]} 28... Bf4 {[%clk
0:00:45.4]} 29. Kg1 {[%clk 0:00:10.6]} 29... Qe3+ {[%clk 0:00:39.5]} 30. Kh1
{[%clk 0:00:08.7]} 30... Qg3 {[%clk 0:00:39.2]} 31. Kg1 {[%clk 0:00:08.1]} 31...
Qe3+ {[%clk 0:00:39.5]} 32. Kh1 {[%clk 0:00:08.6]} 32... Qxe4 {[%clk 0:00:40.4]}
33. Qxd4 {[%clk 0:00:08.8]} 33... Qxd4 {[%clk 0:00:39.7]} 34. Bxd4 {[%clk
0:00:09.7]} 34... Re8 {[%clk 0:00:38.1]} 35. Rf1 {[%clk 0:00:08]} 35... g5
{[%clk 0:00:38.4]} 36. g3 {[%clk 0:00:02.8]} 36... Bxg3 {[%clk 0:00:38.1]} 37.
Rf7+ {[%clk 0:00:03.3]} 37... Kg6 {[%clk 0:00:38.4]} 38. Rg7+ {[%clk 0:00:01.9]}
38... Kf5 {[%clk 0:00:35.8]} 39. Kg2 {[%clk 0:00:02.3]} 39... Bf4 {[%clk
0:00:35.4]} 40. Kf3 {[%clk 0:00:02.8]} 40... Re1 {[%clk 0:00:33]} 41. Rf7+
{[%clk 0:00:02.3]} 41... Ke6 {[%clk 0:00:33.1]} 42. Rg7 {[%clk 0:00:02.3]} 42...
Rd1 {[%clk 0:00:31.9]} 43. Bb2 {[%clk 0:00:01.9]} 43... Rg1 {[%clk 0:00:28.7]}
0-1

[Event "Late-Titled-Tuesday-Blitz-September-05-2023"]
[Site "Chess.com"]
[Date "2023.09.05"]
[Round "9"]
[White "egnfanclub"]
[Black "in_shambles"]
[Result "1-0"]
[WhiteElo "2288"]
[BlackElo "2104"]
[TimeControl "180+1"]
[EndTime "15:45:29 PDT"]
[Termination "egnfanclub won by checkmate"]

1. e4 {[%clk 0:03:00.9]} 1... c5 {[%clk 0:01:05.8]} 2. Nc3 {[%clk 0:03:00.1]}
2... a6 {[%clk 0:01:05.6]} 3. f4 {[%clk 0:03:01]} 3... b5 {[%clk 0:01:05.3]} 4.
g3 {[%clk 0:03:01.9]} 4... Bb7 {[%clk 0:01:04.8]} 5. Bg2 {[%clk 0:03:02.5]} 5...
Nc6 {[%clk 0:01:05.5]} 6. d3 {[%clk 0:03:02.8]} 6... g6 {[%clk 0:01:06]} 7. Nf3
{[%clk 0:03:02.4]} 7... Bg7 {[%clk 0:01:06.3]} 8. O-O {[%clk 0:03:03.3]} 8... d6
{[%clk 0:01:06.8]} 9. Qe2 {[%clk 0:02:58.9]} 9... Nf6 {[%clk 0:01:07]} 10. h3
{[%clk 0:02:59]} 10... O-O {[%clk 0:01:07.6]} 11. g4 {[%clk 0:02:59]} 11... Nd7
{[%clk 0:01:07.7]} 12. Qf2 {[%clk 0:02:57.7]} 12... Nd4 {[%clk 0:01:06.8]} 13.
f5 {[%clk 0:02:52.6]} 13... Qb6 {[%clk 0:01:01.9]} 14. Nd5 {[%clk 0:02:46.4]}
14... Qd8 {[%clk 0:01:00]} 15. Qh4 {[%clk 0:02:36.3]} 15... e6 {[%clk
0:00:58.8]} 16. Ne7+ {[%clk 0:02:33.6]} 16... Kh8 {[%clk 0:00:58.9]} 17. fxg6
{[%clk 0:02:29.4]} 17... fxg6 {[%clk 0:00:55.3]} 18. Nxg6+ {[%clk 0:02:26.5]}
18... Kg8 {[%clk 0:00:55.6]} 19. Ne7+ {[%clk 0:02:20.5]} 19... Kh8 {[%clk
0:00:51.9]} 20. Bg5 {[%clk 0:02:14]} 20... Qe8 {[%clk 0:00:50.4]} 21. c3 {[%clk
0:02:04.6]} 21... Nxf3+ {[%clk 0:00:50.3]} 22. Bxf3 {[%clk 0:01:59.8]} 22... Ne5
{[%clk 0:00:50.3]} 23. Be2 {[%clk 0:01:57.6]} 23... c4 {[%clk 0:00:47.8]} 24.
Rxf8+ {[%clk 0:01:35.3]} 24... Bxf8 {[%clk 0:00:47.6]} 25. Bf6+ {[%clk
0:01:25.1]} 25... Bg7 {[%clk 0:00:47.4]} 26. Bxg7+ {[%clk 0:01:18.3]} 26... Kxg7
{[%clk 0:00:48.3]} 27. Qg5+ {[%clk 0:01:18.7]} 27... Ng6 {[%clk 0:00:48.3]} 28.
Nxg6 {[%clk 0:01:16.9]} 28... hxg6 {[%clk 0:00:48.2]} 29. Rf1 {[%clk 0:01:15.1]}
29... Rb8 {[%clk 0:00:36]} 30. Qf6+ {[%clk 0:01:09]} 30... Kg8 {[%clk
0:00:31.9]} 31. h4 {[%clk 0:00:56.3]} 31... Bc6 {[%clk 0:00:29]} 32. h5 {[%clk
0:00:56]} 32... cxd3 {[%clk 0:00:27]} 33. h6 {[%clk 0:00:46.1]} 33... Rb7 {[%clk
0:00:19.5]} 34. Bxd3 {[%clk 0:00:42.1]} 34... b4 {[%clk 0:00:18.9]} 35. e5
{[%clk 0:00:37.6]} 35... Qe7 {[%clk 0:00:15.1]} 36. Qxg6+ {[%clk 0:00:34.6]}
36... Kh8 {[%clk 0:00:15.6]} 37. exd6 {[%clk 0:00:27.4]} 37... Qxd6 {[%clk
0:00:15.3]} 38. Qf6+ {[%clk 0:00:20.2]} 38... Kg8 {[%clk 0:00:15.4]} 39. h7+
{[%clk 0:00:19.5]} 39... Rxh7 {[%clk 0:00:14.7]} 40. Bxh7+ {[%clk 0:00:20.4]}
40... Kxh7 {[%clk 0:00:15.6]} 41. Qh4+ {[%clk 0:00:19.9]} 41... Kg7 {[%clk
0:00:15.7]} 42. Qg5+ {[%clk 0:00:20]} 42... Kh7 {[%clk 0:00:15.5]} 43. Rf7+
{[%clk 0:00:19.5]} 43... Kh8 {[%clk 0:00:16.1]} 44. Qg7# {[%clk 0:00:19.5]} 1-0

[Event "Late-Titled-Tuesday-Blitz-September-05-2023"]
[Site "Chess.com"]
[Date "2023.09.05"]
[Round "9"]
[White "ketster"]
[Black "ameetghasi100"]
[Result "0-1"]
[WhiteElo "2537"]
[BlackElo "2689"]
[TimeControl "180+1"]
[EndTime "15:45:30 PDT"]
[Termination "ameetghasi100 won by checkmate"]

1. Nf3 {[%clk 0:02:52.2]} 1... g6 {[%clk 0:03:00]} 2. e4 {[%clk 0:02:50.8]} 2...
Bg7 {[%clk 0:03:00.9]} 3. d4 {[%clk 0:02:50.8]} 3... d6 {[%clk 0:03:01.5]} 4.
Nc3 {[%clk 0:02:50.1]} 4... Nf6 {[%clk 0:03:01.8]} 5. Be3 {[%clk 0:02:42]} 5...
O-O {[%clk 0:03:01.4]} 6. Be2 {[%clk 0:02:41.3]} 6... a6 {[%clk 0:02:58.6]} 7.
a4 {[%clk 0:02:39.7]} 7... b6 {[%clk 0:02:59]} 8. O-O {[%clk 0:02:38.1]} 8...
Bb7 {[%clk 0:02:59.1]} 9. Nd2 {[%clk 0:02:37.6]} 9... Nc6 {[%clk 0:02:46.6]} 10.
f4 {[%clk 0:02:35.1]} 10... e5 {[%clk 0:02:32]} 11. d5 {[%clk 0:02:18.4]} 11...
Nd4 {[%clk 0:02:31.5]} 12. fxe5 {[%clk 0:02:04.9]} 12... dxe5 {[%clk 0:02:32.4]}
13. Bg5 {[%clk 0:01:59.9]} 13... h6 {[%clk 0:02:29.1]} 14. Bh4 {[%clk
0:01:56.9]} 14... c6 {[%clk 0:02:17.3]} 15. Nc4 {[%clk 0:01:21]} 15... g5 {[%clk
0:02:10.7]} 16. dxc6 {[%clk 0:01:03.6]} 16... Bxc6 {[%clk 0:02:03.7]} 17. Bg3
{[%clk 0:01:03.7]} 17... Nd7 {[%clk 0:01:39.1]} 18. Nd5 {[%clk 0:00:46.2]} 18...
f5 {[%clk 0:00:57.7]} 19. Bd3 {[%clk 0:00:29.5]} 19... Bxd5 {[%clk 0:00:48.9]}
20. exd5 {[%clk 0:00:29.5]} 20... e4 {[%clk 0:00:48.7]} 21. Be2 {[%clk
0:00:26.8]} 21... f4 {[%clk 0:00:48]} 22. Bf2 {[%clk 0:00:25.3]} 22... e3 {[%clk
0:00:44.9]} 23. Be1 {[%clk 0:00:25.9]} 23... b5 {[%clk 0:00:26.2]} 24. Na5
{[%clk 0:00:15.3]} 24... Ne5 {[%clk 0:00:19.1]} 25. Bc3 {[%clk 0:00:02.2]} 25...
Nxe2+ {[%clk 0:00:18.1]} 26. Qxe2 {[%clk 0:00:03.1]} 26... Qxd5 {[%clk
0:00:18.6]} 27. Rfd1 {[%clk 0:00:03.5]} 27... Qe4 {[%clk 0:00:11.9]} 28. axb5
{[%clk 0:00:03.8]} 28... f3 {[%clk 0:00:11.3]} 29. gxf3 {[%clk 0:00:02]} 29...
Nxf3+ {[%clk 0:00:11]} 30. Kh1 {[%clk 0:00:02.1]} 30... Nh4+ {[%clk 0:00:09.7]}
31. Kg1 {[%clk 0:00:02.1]} 31... Nf3+ {[%clk 0:00:05.2]} 32. Kg2 {[%clk
0:00:02.6]} 32... Ne5+ {[%clk 0:00:04.9]} 33. Kg1 {[%clk 0:00:02]} 33... Rf2
{[%clk 0:00:05.5]} 34. Qd3 {[%clk 0:00:01.4]} 34... Qg2# {[%clk 0:00:05.6]} 0-1

[Event "Late-Titled-Tuesday-Blitz-September-05-2023"]
[Site "Chess.com"]
[Date "2023.09.05"]
[Round "9"]
[White "Keaton87"]
[Black "cassoulet"]
[Result "0-1"]
[WhiteElo "2623"]
[BlackElo "2746"]
[TimeControl "180+1"]
[EndTime "15:45:32 PDT"]
[Termination "cassoulet won on time"]

1. d4 {[%clk 0:03:00.9]} 1... Nf6 {[%clk 0:02:59.4]} 2. Bg5 {[%clk 0:03:00.5]}
2... g6 {[%clk 0:02:56.2]} 3. Bxf6 {[%clk 0:02:59.7]} 3... exf6 {[%clk
0:02:57.1]} 4. e3 {[%clk 0:02:59.9]} 4... Bg7 {[%clk 0:02:57.7]} 5. g3 {[%clk
0:03:00.3]} 5... O-O {[%clk 0:02:58.3]} 6. Bg2 {[%clk 0:03:00.8]} 6... f5 {[%clk
0:02:58.8]} 7. Ne2 {[%clk 0:03:00.9]} 7... d5 {[%clk 0:02:59.4]} 8. O-O {[%clk
0:03:00.7]} 8... c6 {[%clk 0:02:59.9]} 9. Nd2 {[%clk 0:03:00.9]} 9... Nd7 {[%clk
0:03:00.2]} 10. c4 {[%clk 0:03:01.1]} 10... dxc4 {[%clk 0:02:59.9]} 11. Nxc4
{[%clk 0:03:01]} 11... Nf6 {[%clk 0:03:00.5]} 12. Rc1 {[%clk 0:02:54.5]} 12...
Be6 {[%clk 0:02:59.7]} 13. b4 {[%clk 0:02:50.1]} 13... Bd5 {[%clk 0:02:59.3]}
14. a4 {[%clk 0:02:47.3]} 14... h5 {[%clk 0:02:58.4]} 15. Nf4 {[%clk 0:02:34.8]}
15... Bxg2 {[%clk 0:02:57.1]} 16. Kxg2 {[%clk 0:02:35.4]} 16... h4 {[%clk
0:02:54.7]} 17. Qf3 {[%clk 0:02:15.9]} 17... Ne4 {[%clk 0:02:47]} 18. Rfd1
{[%clk 0:02:07.8]} 18... Re8 {[%clk 0:02:38.3]} 19. Nd2 {[%clk 0:01:51.8]} 19...
Qe7 {[%clk 0:02:22]} 20. Nxe4 {[%clk 0:01:48]} 20... fxe4 {[%clk 0:02:22.9]} 21.
Qg4 {[%clk 0:01:47.5]} 21... hxg3 {[%clk 0:02:21.3]} 22. hxg3 {[%clk 0:01:45.8]}
22... Qxb4 {[%clk 0:02:21.5]} 23. d5 {[%clk 0:01:40.4]} 23... Rad8 {[%clk
0:02:07.4]} 24. dxc6 {[%clk 0:01:36.3]} 24... bxc6 {[%clk 0:02:08.3]} 25. Rxc6
{[%clk 0:01:32.2]} 25... Qxa4 {[%clk 0:02:05.6]} 26. Rxd8 {[%clk 0:01:27.6]}
26... Qxc6 {[%clk 0:02:05.1]} 27. Rd5 {[%clk 0:01:05.1]} 27... Bh6 {[%clk
0:02:00]} 28. Ra5 {[%clk 0:01:00.6]} 28... Bxf4 {[%clk 0:01:57.6]} 29. gxf4
{[%clk 0:00:56.8]} 29... a6 {[%clk 0:01:45.9]} 30. f5 {[%clk 0:00:49.9]} 30...
Kg7 {[%clk 0:01:45.9]} 31. Qg5 {[%clk 0:00:41.2]} 31... Qd6 {[%clk 0:01:32.3]}
32. f6+ {[%clk 0:00:18.2]} 32... Qxf6 {[%clk 0:01:30.5]} 33. Qxf6+ {[%clk
0:00:19.1]} 33... Kxf6 {[%clk 0:01:31]} 34. Rxa6+ {[%clk 0:00:19.8]} 34... Kg5
{[%clk 0:01:31.2]} 35. Ra5+ {[%clk 0:00:17.6]} 35... f5 {[%clk 0:01:31]} 36. Ra6
{[%clk 0:00:18.1]} 36... Rh8 {[%clk 0:01:28.8]} 37. Rb6 {[%clk 0:00:16.1]} 37...
Rh6 {[%clk 0:01:27.4]} 38. Ra6 {[%clk 0:00:15.9]} 38... Kg4 {[%clk 0:01:25.9]}
39. Rf6 {[%clk 0:00:14.3]} 39... Kg5 {[%clk 0:01:25]} 40. Ra6 {[%clk 0:00:14.4]}
40... Rh8 {[%clk 0:01:25.4]} 41. Rb6 {[%clk 0:00:14.7]} 41... Rc8 {[%clk
0:01:25.6]} 42. Rd6 {[%clk 0:00:14.7]} 42... Rc2 {[%clk 0:01:24.7]} 43. Ra6
{[%clk 0:00:13.6]} 43... Rc1 {[%clk 0:01:24.9]} 44. Rb6 {[%clk 0:00:13.5]} 44...
Kh5 {[%clk 0:01:25.1]} 45. Rb5 {[%clk 0:00:13.1]} 45... Kg4 {[%clk 0:01:24.9]}
46. Rb6 {[%clk 0:00:13.2]} 46... g5 {[%clk 0:01:25.3]} 47. Rb4 {[%clk
0:00:12.9]} 47... Rc2 {[%clk 0:01:25]} 48. Ra4 {[%clk 0:00:12.7]} 48... Kh5
{[%clk 0:01:21.8]} 49. Ra5 {[%clk 0:00:10.9]} 49... Kg6 {[%clk 0:01:21.3]} 50.
Ra6+ {[%clk 0:00:10.7]} 50... Kh5 {[%clk 0:01:21.7]} 51. Ra5 {[%clk 0:00:11.4]}
51... Kg4 {[%clk 0:01:22.1]} 52. Ra4 {[%clk 0:00:11.3]} 52... Rb2 {[%clk
0:01:22.2]} 53. Rc4 {[%clk 0:00:11.3]} 53... Re2 {[%clk 0:01:04.7]} 54. Ra4
{[%clk 0:00:11.2]} 54... Kh5 {[%clk 0:00:54.7]} 55. Ra5 {[%clk 0:00:10.7]} 55...
Kg6 {[%clk 0:00:53.4]} 56. Ra6+ {[%clk 0:00:10.6]} 56... Kg7 {[%clk 0:00:53.1]}
57. Rb6 {[%clk 0:00:06.2]} 57... f4 {[%clk 0:00:50.8]} 58. exf4 {[%clk
0:00:06.3]} 58... gxf4 {[%clk 0:00:50.1]} 0-1

[Event "Late-Titled-Tuesday-Blitz-September-05-2023"]
[Site "Chess.com"]
[Date "2023.09.05"]
[Round "9"]
[White "reevecanada"]
[Black "IMGC"]
[Result "1/2-1/2"]
[WhiteElo "2534"]
[BlackElo "2429"]
[TimeControl "180+1"]
[EndTime "15:45:33 PDT"]
[Termination "Game drawn by repetition"]

1. e4 {[%clk 0:03:00]} 1... b6 {[%clk 0:02:59.2]} 2. Bc4 {[%clk 0:02:57.5]} 2...
Bb7 {[%clk 0:02:59.1]} 3. Nf3 {[%clk 0:02:57.2]} 3... e6 {[%clk 0:02:59.3]} 4.
Nc3 {[%clk 0:02:56.6]} 4... d5 {[%clk 0:02:58.3]} 5. exd5 {[%clk 0:02:56.8]}
5... exd5 {[%clk 0:02:59.2]} 6. Bb5+ {[%clk 0:02:57]} 6... c6 {[%clk 0:02:59.1]}
7. Be2 {[%clk 0:02:56.9]} 7... d4 {[%clk 0:02:59.1]} 8. Ne4 {[%clk 0:02:57]}
8... c5 {[%clk 0:02:58.8]} 9. Bb5+ {[%clk 0:02:56.9]} 9... Nc6 {[%clk
0:02:56.5]} 10. Ne5 {[%clk 0:02:56.3]} 10... Qd5 {[%clk 0:02:45.2]} 11. Nxc6
{[%clk 0:02:32.8]} 11... Qxe4+ {[%clk 0:02:40.5]} 12. Qe2 {[%clk 0:02:29.3]}
12... Qxe2+ {[%clk 0:02:39.6]} 13. Kxe2 {[%clk 0:02:29.4]} 13... a6 {[%clk
0:02:34.4]} 14. Ba4 {[%clk 0:02:28.6]} 14... b5 {[%clk 0:02:31.7]} 15. Na5
{[%clk 0:02:28.7]} 15... O-O-O {[%clk 0:02:06.2]} 16. Bb3 {[%clk 0:02:22.5]}
16... c4 {[%clk 0:02:06.4]} 17. Nxc4 {[%clk 0:02:22.8]} 17... bxc4 {[%clk
0:02:07.2]} 18. Bxc4 {[%clk 0:02:23.2]} 18... Bxg2 {[%clk 0:01:46.4]} 19. Bxa6+
{[%clk 0:02:19.9]} 19... Kc7 {[%clk 0:01:46.3]} 20. Rg1 {[%clk 0:02:19.3]} 20...
Re8+ {[%clk 0:01:45.9]} 21. Kd3 {[%clk 0:02:18.8]} 21... Be4+ {[%clk 0:01:42.8]}
22. Kxd4 {[%clk 0:02:18.8]} 22... g6 {[%clk 0:01:40.9]} 23. Bd3 {[%clk
0:02:14.8]} 23... Bg7+ {[%clk 0:01:40.2]} 24. Kc4 {[%clk 0:02:14.5]} 24... Bc6
{[%clk 0:01:29.1]} 25. c3 {[%clk 0:01:59.8]} 25... Nf6 {[%clk 0:01:24.2]} 26.
Kb3 {[%clk 0:01:57.8]} 26... Rd8 {[%clk 0:01:20.5]} 27. Kc2 {[%clk 0:01:55.7]}
27... Ne4 {[%clk 0:01:11]} 28. f3 {[%clk 0:01:52.6]} 28... Nc5 {[%clk
0:01:06.8]} 29. Be2 {[%clk 0:01:52.2]} 29... Rhe8 {[%clk 0:01:03.8]} 30. Bd1
{[%clk 0:01:51.8]} 30... Nd3 {[%clk 0:00:57.5]} 31. b3 {[%clk 0:01:48.2]} 31...
Bh6 {[%clk 0:00:46.8]} 32. f4 {[%clk 0:01:25.9]} 32... Bxf4 {[%clk 0:00:42.3]}
33. Rf1 {[%clk 0:01:25.6]} 33... g5 {[%clk 0:00:38.6]} 34. Bh5 {[%clk
0:01:16.6]} 34... Nxc1 {[%clk 0:00:37.9]} 35. Raxc1 {[%clk 0:01:17.1]} 35...
Rxd2+ {[%clk 0:00:37.8]} 36. Kb1 {[%clk 0:01:17.8]} 36... Ree2 {[%clk
0:00:37.6]} 37. Bxe2 {[%clk 0:01:16.2]} 37... Be4+ {[%clk 0:00:36.5]} 38. Ka1
{[%clk 0:01:15]} 38... Rxe2 {[%clk 0:00:37.4]} 39. Rce1 {[%clk 0:01:15]} 39...
Rxe1+ {[%clk 0:00:37.7]} 40. Rxe1 {[%clk 0:01:15.9]} 40... f5 {[%clk 0:00:36.7]}
41. Kb2 {[%clk 0:01:15.2]} 41... Bxh2 {[%clk 0:00:35.6]} 42. a4 {[%clk
0:01:14.3]} 42... Be5 {[%clk 0:00:33.2]} 43. b4 {[%clk 0:01:10.4]} 43... h5
{[%clk 0:00:33.1]} 44. a5 {[%clk 0:01:10.1]} 44... h4 {[%clk 0:00:33.5]} 45. a6
{[%clk 0:01:05.8]} 45... h3 {[%clk 0:00:28]} 46. a7 {[%clk 0:01:05.9]} 46... h2
{[%clk 0:00:27]} 47. Rxe4 {[%clk 0:01:05.3]} 47... h1=Q {[%clk 0:00:25.9]} 48.
Rxe5 {[%clk 0:00:56.3]} 48... Kb7 {[%clk 0:00:23.8]} 49. Re7+ {[%clk 0:00:55.9]}
49... Ka8 {[%clk 0:00:23.7]} 50. Ka3 {[%clk 0:00:46]} 50... Qa1+ {[%clk
0:00:22.6]} 51. Kb3 {[%clk 0:00:45.5]} 51... Qb1+ {[%clk 0:00:22.5]} 52. Kc4
{[%clk 0:00:44.9]} 52... g4 {[%clk 0:00:16.4]} 53. Kc5 {[%clk 0:00:44.7]} 53...
g3 {[%clk 0:00:15.8]} 54. Kc6 {[%clk 0:00:39.8]} 54... g2 {[%clk 0:00:13.7]} 55.
b5 {[%clk 0:00:37.4]} 55... g1=Q {[%clk 0:00:13]} 56. Re8+ {[%clk 0:00:38]}
56... Kxa7 {[%clk 0:00:12.4]} 57. Re7+ {[%clk 0:00:38.9]} 57... Kb8 {[%clk
0:00:11.8]} 58. Re8+ {[%clk 0:00:39.8]} 58... Ka7 {[%clk 0:00:10.2]} 59. Re7+
{[%clk 0:00:40.7]} 59... Kb8 {[%clk 0:00:10.1]} 60. Re8+ {[%clk 0:00:41.6]}
60... Ka7 {[%clk 0:00:10.3]} 1/2-1/2

[Event "Late-Titled-Tuesday-Blitz-September-05-2023"]
[Site "Chess.com"]
[Date "2023.09.05"]
[Round "9"]
[White "Matibar"]
[Black "Taran2004"]
[Result "1-0"]
[WhiteElo "2867"]
[BlackElo "2427"]
[TimeControl "180+1"]
[EndTime "15:45:40 PDT"]
[Termination "Matibar won by resignation"]

1. c4 {[%clk 0:03:00.9]} 1... e5 {[%clk 0:02:59.6]} 2. Nc3 {[%clk 0:03:00.5]}
2... Nc6 {[%clk 0:02:59.7]} 3. e3 {[%clk 0:02:57.6]} 3... Nf6 {[%clk 0:02:59]}
4. a3 {[%clk 0:02:57.7]} 4... g6 {[%clk 0:02:58.7]} 5. b4 {[%clk 0:02:54.9]}
5... Bg7 {[%clk 0:02:57.2]} 6. Bb2 {[%clk 0:02:55.1]} 6... O-O {[%clk
0:02:56.1]} 7. Nge2 {[%clk 0:02:52.1]} 7... d5 {[%clk 0:02:55.4]} 8. cxd5 {[%clk
0:02:51.9]} 8... Nxd5 {[%clk 0:02:54.4]} 9. Ng3 {[%clk 0:02:52.8]} 9... Be6
{[%clk 0:02:52.4]} 10. Be2 {[%clk 0:02:45]} 10... f5 {[%clk 0:02:44.9]} 11. O-O
{[%clk 0:02:41.8]} 11... Qd7 {[%clk 0:02:39.7]} 12. Qc2 {[%clk 0:02:32.7]} 12...
Rac8 {[%clk 0:02:36]} 13. Rac1 {[%clk 0:02:30.4]} 13... Nxc3 {[%clk 0:02:28.4]}
14. Bxc3 {[%clk 0:02:21.4]} 14... e4 {[%clk 0:02:20.8]} 15. Bxg7 {[%clk
0:02:12.7]} 15... Qxg7 {[%clk 0:02:21.5]} 16. d4 {[%clk 0:02:08]} 16... exd3
{[%clk 0:02:17.4]} 17. Bxd3 {[%clk 0:02:07.8]} 17... Ne5 {[%clk 0:02:17.3]} 18.
Rfd1 {[%clk 0:02:00.8]} 18... c6 {[%clk 0:02:09]} 19. Bf1 {[%clk 0:02:00.6]}
19... Rfd8 {[%clk 0:02:05]} 20. Ne2 {[%clk 0:01:58.2]} 20... Bd5 {[%clk
0:01:56]} 21. Nc3 {[%clk 0:01:56.7]} 21... Be6 {[%clk 0:01:55.4]} 22. Ne2 {[%clk
0:01:54]} 22... Qf7 {[%clk 0:01:55]} 23. Nf4 {[%clk 0:01:48.3]} 23... Bb3 {[%clk
0:01:44.6]} 24. Rxd8+ {[%clk 0:01:47.5]} 24... Rxd8 {[%clk 0:01:45.1]} 25. Qc5
{[%clk 0:01:28.9]} 25... Nd7 {[%clk 0:01:13.8]} 26. Qxa7 {[%clk 0:01:25.9]}
26... Nf6 {[%clk 0:01:13.7]} 27. Nd3 {[%clk 0:01:07.8]} 27... Bd5 {[%clk
0:00:56.3]} 28. Nc5 {[%clk 0:01:01.9]} 28... b5 {[%clk 0:00:49.4]} 29. Qxf7+
{[%clk 0:00:59.8]} 29... Kxf7 {[%clk 0:00:50.3]} 30. f3 {[%clk 0:00:54.3]} 30...
Ra8 {[%clk 0:00:49.8]} 31. Rc3 {[%clk 0:00:54]} 31... Ke7 {[%clk 0:00:48]} 32.
Kf2 {[%clk 0:00:53.8]} 32... Kd6 {[%clk 0:00:48.4]} 33. h3 {[%clk 0:00:53.2]}
33... g5 {[%clk 0:00:44.9]} 34. Bd3 {[%clk 0:00:52.5]} 34... f4 {[%clk
0:00:43.1]} 35. e4 {[%clk 0:00:46.3]} 35... Be6 {[%clk 0:00:40.9]} 36. Nb7+
{[%clk 0:00:45.6]} 36... Ke7 {[%clk 0:00:32.7]} 37. Na5 {[%clk 0:00:44.7]} 37...
Bd7 {[%clk 0:00:32.2]} 38. Rc5 {[%clk 0:00:37.3]} 38... h6 {[%clk 0:00:30.6]}
39. Ke2 {[%clk 0:00:35.2]} 39... Nh5 {[%clk 0:00:28.9]} 40. Kd2 {[%clk
0:00:35.1]} 40... Ng7 {[%clk 0:00:28.1]} 41. Nxc6+ {[%clk 0:00:30.6]} 41... Bxc6
{[%clk 0:00:28.5]} 42. Rxc6 {[%clk 0:00:31.5]} 42... Rxa3 {[%clk 0:00:28]} 43.
Bxb5 {[%clk 0:00:23.6]} 43... Rb3 {[%clk 0:00:28.1]} 44. Rc7+ {[%clk 0:00:20.3]}
44... Kf6 {[%clk 0:00:24.9]} 45. e5+ {[%clk 0:00:18.9]} 45... Kxe5 {[%clk
0:00:19.6]} 46. Rxg7 {[%clk 0:00:18.7]} 46... Rxb4 {[%clk 0:00:20.1]} 47. Bd3
{[%clk 0:00:18.9]} 47... Rb2+ {[%clk 0:00:19.3]} 48. Bc2 {[%clk 0:00:19.1]}
48... Kf6 {[%clk 0:00:18.6]} 49. Rg6+ {[%clk 0:00:19.5]} 49... Kf7 {[%clk
0:00:19.5]} 50. Rxh6 {[%clk 0:00:20.1]} 1-0